bitfinex/quotes_BTCUSD_20220115
["timestamp","ask_amount","ask_price","bid_price","bid_amount"]
[1642261923111,0.022104,43374.0,43371.0,0.00093365]
[1642261923311,0.022104,43374.0,43372.0,0.00037818]
[1642261923913,0.02158025,43374.0,43372.0,0.00037818]
[1642261924310,0.02158025,43374.0,43371.0,0.00093365]
[1642261924511,0.02158025,43374.0,43372.0,0.00037818]
[1642261925169,0.59635386,43374.0,43372.0,0.00037818]
[1642261925369,0.2575391,43373.0,43372.0,0.00037818]
[1642261925572,0.0463,43373.0,43372.0,0.00037818]
[1642261926669,0.0463,43373.0,43370.0,0.00093366]
[1642261926870,0.0463,43373.0,43371.0,0.37537037]
[1642261927271,0.0463,43373.0,43372.0,0.00037818]
[1642261927871,0.0463,43373.0,43370.0,0.00093366]
[1642261928071,0.3213992,43372.0,43371.0,0.00039537]
[1642261928511,0.23,43374.0,43371.0,0.00039537]
[1642261929113,0.23,43374.0,43370.0,0.00093366]
[1642261929114,0.23,43374.0,43370.0,0.00134622]
[1642261929316,0.23,43374.0,43371.0,0.00039537]
[1642261929613,0.52739723,43374.0,43371.0,0.00039537]
[1642261930215,0.23,43374.0,43371.0,0.00039537]
[1642261930415,0.22,43374.0,43372.0,0.374975]
[1642261930615,0.22,43374.0,43371.0,0.00039537]
[1642261930831,0.22,43374.0,43373.0,0.00036099]
[1642261931016,0.22,43374.0,43371.0,0.00039537]
[1642261931217,0.22,43374.0,43373.0,0.00036099]
[1642261931717,0.22,43374.0,43369.0,0.56590745]
[1642261931919,0.22,43374.0,43370.0,0.374975]
[1642261932377,0.22,43374.0,43372.0,0.0012898]
[1642261932574,0.22,43374.0,43373.0,2.92625013]
[1642261933873,0.22,43374.0,43373.0,3.3446472]
[1642261934473,0.22,43374.0,43373.0,3.34337207]
[1642261934672,0.22,43374.0,43373.0,0.79337207]
[1642261935274,0.22,43374.0,43373.0,2.04337207]
[1642261937110,0.22,43374.0,43373.0,2.44337207]
[1642261937311,0.22,43374.0,43373.0,2.04337207]
[1642261939418,0.22,43374.0,43373.0,2.04465831]
[1642261939877,0.22,43374.0,43373.0,3.27065831]
[1642261940282,0.22,43374.0,43373.0,3.32828531]
[1642261940476,0.04372477,43374.0,43373.0,4.31450243]
[1642261940675,0.04372477,43374.0,43373.0,4.41450243]
[1642261940879,0.00328059,43384.0,43373.0,4.09610536]
[1642261941078,0.00328059,43384.0,43381.0,1.226]
[1642261941278,0.2724542,43402.0,43384.0,2.774975]
[1642261941481,0.2724542,43402.0,43389.0,0.00129829]
[1642261941679,0.2724542,43402.0,43390.0,0.374975]
[1642261941879,0.31194929,43397.0,43393.0,0.34929711]
[1642261942277,0.00039537,43396.0,43393.0,0.34929711]
[1642261942476,0.00039537,43396.0,43389.0,0.00129829]
[1642261942676,0.00037818,43395.0,43390.0,0.374975]
[1642261942877,0.00037818,43395.0,43389.0,0.00129829]
[1642261943077,0.00036099,43394.0,43389.0,0.00129829]
[1642261943377,0.0003438,43393.0,43390.0,0.374975]
[1642261943622,0.0003438,43393.0,43391.0,0.38964866]
[1642261943827,0.00032661,43392.0,43391.0,0.38964866]
[1642261944024,0.00032661,43392.0,43391.0,1.21462366]
[1642261944225,0.00032661,43392.0,43391.0,0.374975]
[1642261945023,0.23032661,43392.0,43391.0,0.374975]
[1642261948965,0.23032661,43392.0,43384.0,0.2995]
[1642261949165,0.23032661,43392.0,43385.0,0.374975]
[1642261949364,0.00030942,43391.0,43382.0,0.00093359]
[1642261949565,0.00030942,43391.0,43386.0,0.43723281]
[1642261949770,0.00029223,43390.0,43387.0,0.374975]
[1642261950164,0.00027504,43389.0,43387.0,0.374975]
[1642261950565,0.00025785,43388.0,43387.0,0.374975]
[1642261950767,0.00025785,43388.0,43382.0,0.00093356]
[1642261951014,0.00025785,43388.0,43383.0,0.374975]
[1642261951214,0.00024066,43387.0,43383.0,0.374975]
[1642261951614,0.00022347,43386.0,43383.0,0.374975]
[1642261951816,0.27201269,43386.0,43383.0,0.374975]
[1642261952015,0.00020628,43385.0,43383.0,0.374975]
[1642261952419,0.00018909,43384.0,43383.0,0.374975]
[1642261953018,0.00018909,43384.0,43383.0,1.87622797]
[1642261953817,0.00018909,43384.0,43383.0,4.26127626]
[1642261954617,0.00018909,43384.0,43383.0,4.26002329]
[1642261956465,9.09e-06,43384.0,43383.0,5.6448879]
[1642261956664,9.09e-06,43384.0,43383.0,5.6911879]
[1642261957065,9.09e-06,43384.0,43383.0,6.67715408]
[1642261957264,0.0008284,43387.0,43383.0,7.48730648]
[1642261957463,0.0008284,43387.0,43386.0,4.200975]
[1642261957669,0.23,43392.0,43387.0,1.28360683]
[1642261957864,0.23,43392.0,43391.0,2.324975]
[1642261959113,0.23,43392.0,43391.0,0.374975]
[1642261959812,0.23,43392.0,43391.0,2.074975]
[1642261961415,0.23,43392.0,43391.0,2.174975]
[1642261962660,0.23,43392.0,43391.0,0.374975]
[1642261964160,0.23,43392.0,43384.0,0.57053308]
[1642261964459,0.00012033,43391.0,43386.0,0.36655424]
[1642261964659,0.00012033,43391.0,43387.0,0.374975]
[1642261964861,0.00010314,43390.0,43387.0,0.374975]
[1642261965261,0.00084013,43391.0,43387.0,0.374975]
[1642261965262,8.595e-05,43389.0,43387.0,0.374975]
[1642261965662,6.876e-05,43388.0,43387.0,0.374975]
[1642261966518,0.28891212,43388.0,43387.0,0.374975]
[1642261966718,0.28891212,43388.0,43384.0,0.57053308]
[1642261966915,0.28891212,43388.0,43385.0,0.374975]
[1642261967517,6.876e-05,43388.0,43385.0,0.374975]
[1642261969520,6.876e-05,43388.0,43386.0,2.5034433]
[1642261969760,6.876e-05,43388.0,43387.0,1.524975]
[1642261969965,6.876e-05,43388.0,43387.0,0.374975]
[1642261970961,6.876e-05,43388.0,43387.0,0.824975]
[1642261972264,6.876e-05,43388.0,43387.0,0.374975]
[1642261972764,6.876e-05,43388.0,43387.0,0.674975]
[1642261973169,6.876e-05,43388.0,43387.0,0.374975]
[1642261975821,6.876e-05,43388.0,43387.0,0.824975]
[1642261976218,6.876e-05,43388.0,43387.0,0.374975]
[1642261977365,6.876e-05,43388.0,43387.0,3.15765769]
[1642261977764,6.876e-05,43388.0,43387.0,0.374975]
[1642261978164,0.28347789,43388.0,43387.0,0.374975]
[1642261979766,6.876e-05,43388.0,43387.0,0.374975]
[1642261980766,6.876e-05,43388.0,43387.0,1.124975]
[1642261981617,6.876e-05,43388.0,43387.0,0.374975]
[1642261982219,6.876e-05,43388.0,43387.0,0.432589]
[1642261982619,6.876e-05,43388.0,43387.0,0.374975]
[1642261986665,0.00039037,43390.0,43387.0,0.374975]
[1642261987069,0.00039037,43390.0,43383.0,0.57053308]
[1642261987269,0.0463,43389.0,43384.0,0.374975]
[1642261987467,0.0463,43389.0,43384.0,0.37504376]
[1642261987870,0.0463,43389.0,43384.0,6.876e-05]
[1642261988268,0.50107531,43389.0,43381.0,0.00012033]
[1642261988518,0.24273248,43382.0,43381.0,0.00012033]
[1642261988719,0.28903248,43382.0,43381.0,0.37509533]
[1642261989318,0.54405187,43382.0,43381.0,0.37509533]
[1642261989915,0.54405187,43382.0,43381.0,0.00012033]
[1642261990314,0.54405187,43382.0,43379.0,0.00093356]
[1642261990517,0.84292684,43382.0,43380.0,0.00013752]
[1642261990817,0.26438918,43381.0,43380.0,0.00013752]
[1642261991016,0.31068918,43381.0,43380.0,0.00013752]
[1642261991615,0.31068918,43381.0,43378.0,0.00093357]
[1642261991818,0.0463,43381.0,43379.0,0.00015471]
[1642261992016,0.28563556,43381.0,43379.0,0.00015471]
[1642261992264,0.28665042,43381.0,43379.0,0.00015471]
[1642261992461,0.29341862,43381.0,43379.0,0.00015471]
[1642261992662,0.29341862,43381.0,43378.0,0.00093357]
[1642261992663,0.2902995,43381.0,43378.0,0.00093357]
[1642261992963,0.23938049,43380.0,43379.0,0.00015471]
[1642261993164,0.28568049,43380.0,43379.0,0.00015471]
[1642261993966,0.28568049,43380.0,43377.0,0.00087754]
[1642261994163,0.0463,43380.0,43378.0,0.0001719]
[1642261995165,0.0463,43380.0,43377.0,0.00087755]
[1642261995467,0.0463,43380.0,43378.0,0.0001719]
[1642261995668,0.65385793,43379.0,43378.0,0.0001719]
[1642261996116,0.75385793,43379.0,43378.0,0.0001719]
[1642261996314,0.65385793,43379.0,43376.0,0.00087755]
[1642261996512,0.65385793,43379.0,43377.0,0.00018909]
[1642261996712,0.28740508,43378.0,43377.0,0.00018909]
[1642261996913,0.65321608,43378.0,43377.0,0.00018909]
[1642261997112,0.365811,43378.0,43377.0,0.00018909]
[1642261997313,0.00128356,43379.0,43377.0,0.00018909]
[1642261997514,0.374975,43378.0,43375.0,0.00087153]
[1642261997713,0.0463,43378.0,43376.0,0.00020628]
[1642261998713,0.0463,43378.0,43375.0,0.00087153]
[1642261999112,0.0463,43378.0,43376.0,0.00020628]
[1642261999113,0.374975,43377.0,43376.0,0.00020628]
[1642261999769,0.474975,43377.0,43376.0,0.00020628]
[1642262000072,0.30754719,43375.0,43374.0,0.00087154]
[1642262000471,0.0463,43378.0,43374.0,0.0011122]
[1642262000669,0.0463,43378.0,43374.0,0.00024066]
[1642262000872,0.23,43380.0,43375.0,0.00022347]
[1642262001072,0.23,43380.0,43374.0,0.00086554]
[1642262001268,0.23,43380.0,43375.0,0.00022347]
[1642262001472,0.47699227,43380.0,43375.0,0.00022347]
[1642262001870,0.47699227,43380.0,43375.0,0.45106355]
[1642262002071,0.47699227,43380.0,43375.0,0.45192907]
[1642262002270,0.47699227,43380.0,43376.0,0.00020628]
[1642262003272,0.47699227,43380.0,43376.0,0.00107357]
[1642262003733,0.47699227,43380.0,43377.0,0.00018909]
[1642262004137,0.47699227,43380.0,43378.0,0.00042125]
[1642262004434,0.73259647,43379.0,43378.0,0.00042125]
[1642262004833,0.73259647,43379.0,43378.0,0.00059315]
[1642262005232,1.0624252,43379.0,43378.0,0.00059315]
[1642262005433,0.78014209,43379.0,43378.0,0.00059315]
[1642262006233,0.42252062,43379.0,43378.0,0.00059315]
[1642262006433,0.04754562,43379.0,43378.0,0.00059315]
[1642262007035,0.0463,43379.0,43378.0,0.00059315]
[1642262008568,0.47699227,43380.0,43378.0,0.00059315]
[1642262008968,0.47699227,43380.0,43379.0,0.00015471]
[1642262013016,0.23,43380.0,43379.0,0.00015471]
[1642262014218,0.23,43380.0,43379.0,0.00036932]
[1642262014419,0.47437829,43380.0,43379.0,0.00036932]
[1642262015270,0.23,43380.0,43379.0,0.00036932]
[1642262018274,0.47383177,43380.0,43379.0,0.00036932]
[1642262018511,0.23,43380.0,43379.0,0.00036932]
[1642262019211,0.23,43380.0,43379.0,0.00057647]
[1642262020216,0.93959231,43380.0,43379.0,0.00057647]
[1642262020815,0.67649615,43380.0,43379.0,0.00057647]
[1642262023269,0.23,43380.0,43379.0,0.00057647]
[1642262024269,0.23,43380.0,43379.0,0.00036932]
[1642262026132,0.47213521,43380.0,43379.0,0.00036932]
[1642262027134,0.17213521,43380.0,43379.0,0.00036932]
[1642262027332,0.30936002,43381.0,43379.0,0.00036932]
[1642262027735,0.30936002,43381.0,43380.0,0.00013752]
[1642262027933,0.57404988,43381.0,43380.0,0.00013752]
[1642262028132,0.95028029,43381.0,43380.0,0.00013752]
[1642262029332,0.95028029,43381.0,43380.0,0.00035206]
[1642262030571,1.05028029,43381.0,43380.0,0.00035206]
[1642262030870,0.95028029,43381.0,43380.0,0.00035206]
[1642262035116,0.94902488,43381.0,43380.0,0.00035206]
[1642262036936,0.95902488,43381.0,43380.0,0.00035206]
[1642262037878,0.95902488,43381.0,43380.0,0.00029206]
[1642262038383,1.05902488,43381.0,43380.0,0.00029206]
[1642262038780,1.10532488,43381.0,43380.0,0.00029206]
[1642262039183,1.15652531,43381.0,43380.0,0.00029206]
[1642262039384,1.16239192,43381.0,43380.0,0.00029206]
[1642262039584,3.39253201,43381.0,43380.0,0.00029206]
[1642262040181,1.16239192,43381.0,43380.0,0.00029206]
[1642262040581,0.89770206,43381.0,43380.0,0.00029206]
[1642262041231,0.95536006,43381.0,43380.0,0.00029206]
[1642262041631,1.25142939,43381.0,43380.0,0.00029206]
[1642262041832,0.95536006,43381.0,43380.0,0.00029206]
[1642262042031,1.21585219,43381.0,43380.0,0.00029206]
[1642262042832,1.21465176,43381.0,43380.0,0.00029206]
[1642262045171,1.21589304,43381.0,43380.0,0.00029206]
[1642262048830,1.15823504,43381.0,43380.0,0.00029206]
[1642262051025,1.21589504,43381.0,43380.0,0.00029206]
[1642262051625,1.79489504,43381.0,43380.0,0.00029206]
[1642262055474,1.42550163,43381.0,43380.0,0.00029206]
[1642262055672,0.84063502,43381.0,43380.0,0.00029206]
[1642262055875,0.74063502,43381.0,43380.0,0.00029206]
[1642262056726,0.0563,43381.0,43380.0,0.40029206]
[1642262056929,0.0563,43381.0,43380.0,0.00029206]
[1642262056930,0.01,43381.0,43380.0,0.00029206]
[1642262058826,0.384975,43381.0,43380.0,0.00029206]
[1642262063524,0.484975,43381.0,43380.0,0.00029206]
[1642262063725,0.384975,43381.0,43380.0,0.00029206]
[1642262063926,0.01,43381.0,43380.0,0.00029206]
[1642262065726,0.384975,43381.0,43380.0,0.00029206]
[1642262065926,0.384975,43381.0,43380.0,7.434e-05]
[1642262066525,0.484975,43381.0,43380.0,7.434e-05]
[1642262067031,0.384975,43381.0,43380.0,7.434e-05]
[1642262067483,0.484975,43381.0,43380.0,7.434e-05]
[1642262067685,0.542631,43381.0,43380.0,7.434e-05]
[1642262068885,0.442631,43381.0,43380.0,7.434e-05]
[1642262069184,0.484975,43381.0,43380.0,7.434e-05]
[1642262069385,0.484975,43381.0,43380.0,0.00025313]
[1642262071152,0.379975,43381.0,43380.0,0.00025313]
[1642262073053,0.005,43381.0,43380.0,0.00025313]
[1642262075275,0.005,43388.0,43381.0,2.6]
[1642262075473,0.005,43388.0,43386.0,0.00125019]
[1642262075771,0.005,43388.0,43387.0,1.974975]
[1642262076170,0.00506318,43388.0,43387.0,0.374975]
[1642262076772,0.01506318,43388.0,43386.0,0.00125019]
[1642262076972,0.01506318,43388.0,43384.0,0.0008668]
[1642262076973,0.01506318,43388.0,43387.0,0.974975]
[1642262077372,0.01506318,43388.0,43387.0,0.374975]
[1642262077572,0.01506318,43388.0,43387.0,0.724975]
[1642262077772,0.00506318,43388.0,43387.0,0.724975]
[1642262079122,0.00506318,43388.0,43387.0,0.72530884]
[1642262079523,0.00506318,43388.0,43387.0,1.22530884]
[1642262080321,0.00506318,43388.0,43387.0,0.37530884]
[1642262089977,0.81416567,43396.0,43388.0,0.5]
[1642262090170,0.81416567,43396.0,43387.0,0.00033384]
[1642262090370,6.876e-05,43392.0,43387.0,0.00033384]
[1642262091770,6.876e-05,43392.0,43388.0,0.374975]
[1642262092373,6.876e-05,43392.0,43387.0,0.00033384]
[1642262093724,6.876e-05,43392.0,43388.0,0.374975]
[1642262094326,6.876e-05,43392.0,43389.0,0.00049798]
[1642262099176,6.876e-05,43392.0,43391.0,0.00033329]
[1642262101423,0.37504376,43392.0,43391.0,0.00033329]
[1642262103226,6.876e-05,43392.0,43391.0,0.00033329]
[1642262104226,6.876e-05,43392.0,43391.0,0.00049763]
[1642262104872,0.37504376,43392.0,43391.0,0.00049763]
[1642262105276,0.72365989,43392.0,43391.0,0.00049763]
[1642262105478,0.76995989,43392.0,43391.0,0.00049763]
[1642262106275,1.31995989,43392.0,43391.0,0.00049763]
[1642262107077,0.76995989,43392.0,43391.0,0.00049763]
[1642262109130,1.16995989,43392.0,43391.0,0.00049763]
[1642262111736,0.76995989,43392.0,43391.0,0.00049763]
[1642262113179,1.16995989,43392.0,43391.0,0.00049763]
[1642262113588,0.42082376,43392.0,43391.0,0.00049763]
[1642262115383,0.52082376,43392.0,43391.0,0.00049763]
[1642262116032,0.52029967,43392.0,43391.0,0.00049763]
[1642262123921,0.42029967,43392.0,43391.0,0.00049763]
[1642262125723,0.37399967,43392.0,43391.0,0.00049763]
[1642262125924,0.31157292,43394.0,43391.0,0.00049763]
[1642262126323,0.00077292,43394.0,43391.0,0.00049763]
[1642262126522,0.00077292,43394.0,43392.0,0.374797]
[1642262126730,0.2858,43402.0,43391.0,0.00049763]
[1642262126925,0.00077295,43395.0,43391.0,0.00049763]
[1642262127577,0.00077295,43395.0,43392.0,0.374797]
[1642262127976,0.33489344,43398.0,43392.0,0.374797]
[1642262128176,0.00077295,43396.0,43391.0,0.00049763]
[1642262129077,8.595e-05,43397.0,43391.0,0.00049763]
[1642262129280,0.00077295,43396.0,43394.0,0.00016375]
[1642262129478,0.00084171,43396.0,43394.0,0.00016375]
[1642262130478,6.876e-05,43396.0,43394.0,0.00016375]
[1642262130678,6.876e-05,43396.0,43395.0,2.124797]
[1642262131326,6.876e-05,43396.0,43395.0,0.374797]
[1642262131934,6.876e-05,43396.0,43395.0,0.924797]
[1642262132729,6.876e-05,43396.0,43395.0,1.19976678]
[1642262134130,6.876e-05,43396.0,43395.0,1.20011704]
[1642262134632,6.876e-05,43396.0,43395.0,0.92514726]
[1642262134877,6.876e-05,43396.0,43395.0,2.27514726]
[1642262135278,6.876e-05,43396.0,43395.0,3.50114726]
[1642262135479,6.876e-05,43396.0,43395.0,3.60114726]
[1642262135877,6.876e-05,43396.0,43395.0,6.87964726]
[1642262136080,6.876e-05,43396.0,43395.0,5.65364726]
[1642262136278,6.876e-05,43396.0,43395.0,5.75364726]
[1642262136484,6.876e-05,43396.0,43395.0,5.65364726]
[1642262139135,6.876e-05,43396.0,43395.0,5.75364726]
[1642262139339,6.876e-05,43396.0,43395.0,5.65364736]
[1642262140243,6.876e-05,43396.0,43395.0,4.20364736]
[1642262141937,0.00309139,43405.0,43396.0,1.75]
[1642262142139,0.00309139,43405.0,43397.0,0.374797]
[1642262142376,0.00010314,43402.0,43397.0,0.374797]
[1642262142771,8.595e-05,43401.0,43397.0,0.63636539]
[1642262142972,8.595e-05,43401.0,43398.0,0.33152971]
[1642262143173,6.876e-05,43400.0,43399.0,0.374797]
[1642262143373,0.9236,43418.0,43400.0,1.85]
[1642262143574,0.30875186,43413.0,43405.0,0.33458791]
[1642262143775,0.0001719,43410.0,43405.0,0.33458791]
[1642262143973,0.0001719,43410.0,43406.0,0.374797]
[1642262144176,0.28392137,43412.0,43406.0,0.374797]
[1642262144177,0.00015471,43409.0,43406.0,0.374797]
[1642262144575,0.00013752,43408.0,43402.0,0.00129571]
[1642262144776,0.28390287,43412.0,43404.0,0.6]
[1642262145180,0.27890287,43412.0,43403.0,8.595e-05]
[1642262145577,0.27890287,43412.0,43404.0,0.374797]
[1642262145878,0.27890287,43412.0,43404.0,0.29315737]
[1642262146127,0.00076607,43410.0,43404.0,0.29315737]
[1642262146328,0.00076607,43410.0,43405.0,0.374797]
[1642262147226,0.53664251,43412.0,43405.0,0.374797]
[1642262147426,0.32624519,43404.0,43403.0,8.595e-05]
[1642262147730,0.00076607,43410.0,43403.0,0.37488295]
[1642262148028,0.00076607,43410.0,43404.0,6.876e-05]
[1642262148226,0.00076607,43410.0,43404.0,0.31193695]
[1642262148426,0.25773964,43412.0,43404.0,0.31193695]
[1642262148628,0.00076606,43409.0,43404.0,0.31193695]
[1642262148827,0.00076606,43409.0,43405.0,0.374797]
[1642262149228,0.00076606,43409.0,43405.0,0.37515007]
[1642262149628,0.00124422,43417.0,43406.0,0.32624247]
[1642262149875,0.00076606,43409.0,43406.0,0.32624247]
[1642262150283,0.00076606,43409.0,43407.0,0.374797]
[1642262150875,0.00076607,43410.0,43407.0,0.374797]
[1642262151074,0.00076607,43410.0,43406.0,0.32624247]
[1642262151478,0.00076607,43410.0,43405.0,0.00035307]
[1642262151876,0.33560739,43406.0,43405.0,0.00035307]
[1642262152076,6.876e-05,43412.0,43405.0,0.37515007]
[1642262152277,0.00076607,43410.0,43405.0,0.37515007]
[1642262152476,0.00076607,43410.0,43405.0,0.63431383]
[1642262152881,0.00076607,43410.0,43405.0,0.37515007]
[1642262153077,0.34172027,43409.0,43405.0,0.37515007]
[1642262154329,0.34172027,43409.0,43407.0,0.00033309]
[1642262154529,0.17545933,43412.0,43408.0,0.374797]
[1642262154729,0.28539865,43411.0,43407.0,0.00033309]
[1642262154929,0.28539865,43411.0,43408.0,6.876e-05]
[1642262155331,0.27405731,43415.0,43409.0,0.374797]
[1642262155533,0.27405731,43415.0,43408.0,6.876e-05]
[1642262155729,0.24802384,43414.0,43408.0,6.876e-05]
[1642262157686,0.374797,43413.0,43408.0,6.876e-05]
[1642262159283,0.374797,43413.0,43410.0,0.00030522]
[1642262159483,0.421097,43413.0,43410.0,0.00030522]
[1642262160593,0.520597,43413.0,43410.0,0.00030522]
[1642262163334,0.31110034,43412.0,43410.0,0.00030522]
[1642262163537,0.761341,43411.0,43410.0,0.00030522]
[1642262163736,0.69522859,43411.0,43410.0,0.00030522]
[1642262164137,0.69522859,43411.0,43408.0,0.00116561]
[1642262165180,0.69522859,43411.0,43408.0,0.0002324]
[1642262166581,0.411341,43411.0,43408.0,0.0002324]
[1642262166783,0.2918,43415.0,43408.0,0.0014449]
[1642262167782,0.2918,43415.0,43409.0,0.00093087]
[1642262167783,0.58315571,43415.0,43409.0,0.00093087]
[1642262168629,0.29135571,43415.0,43409.0,0.00093087]
[1642262168828,0.29135571,43415.0,43408.0,0.0014449]
[1642262169030,0.29135571,43415.0,43410.0,0.00093086]
[1642262169229,0.29135571,43415.0,43411.0,0.00033282]
[1642262170129,0.29135571,43415.0,43411.0,0.00126367]
[1642262171132,0.374699,43414.0,43411.0,0.00033282]
[1642262171332,0.374699,43414.0,43411.0,0.001266]
[1642262171734,0.29135571,43415.0,43411.0,0.001266]
[1642262171933,0.3489619,43415.0,43411.0,0.001266]
[1642262172380,0.29135571,43415.0,43411.0,0.00033282]
[1642262172574,0.29135571,43415.0,43411.0,0.001266]
[1642262173584,0.29135571,43415.0,43411.0,0.00033282]
[1642262173777,0.29135571,43415.0,43411.0,0.001266]
[1642262174180,0.29135571,43415.0,43413.0,0.00045807]
[1642262174578,0.374699,43414.0,43413.0,0.00045807]
[1642262175182,0.374699,43414.0,43404.0,0.27407789]
[1642262175380,0.00010314,43414.0,43404.0,0.00121829]
[1642262175583,0.28145885,43415.0,43404.0,1.25121829]
[1642262175781,0.28145885,43415.0,43405.0,0.27357993]
[1642262176235,0.28145885,43415.0,43406.0,0.00013752]
[1642262178329,0.24170006,43408.0,43406.0,0.00013752]
[1642262178529,0.34079596,43411.0,43407.0,0.374699]
[1642262178733,0.34079596,43411.0,43406.0,0.00013752]
[1642262179029,0.34079596,43411.0,43408.0,0.00010314]
[1642262179229,0.34079596,43411.0,43408.0,0.00023331]
[1642262179630,0.34079596,43411.0,43409.0,8.595e-05]
[1642262179890,0.58716503,43411.0,43409.0,8.595e-05]
[1642262180090,0.08716503,43411.0,43409.0,8.595e-05]
[1642262181396,0.2569657,43412.0,43409.0,8.595e-05]
[1642262182394,0.25126334,43411.0,43409.0,8.595e-05]
[1642262182796,0.2569657,43412.0,43409.0,8.595e-05]
[1642262184039,0.28373026,43410.0,43409.0,8.595e-05]
[1642262184629,0.2569657,43412.0,43409.0,8.595e-05]
[1642262185027,0.2569657,43412.0,43408.0,0.00010314]
[1642262185828,0.2569657,43412.0,43408.0,0.00103636]
[1642262186228,0.2569657,43412.0,43409.0,8.595e-05]
[1642262189181,0.2569657,43412.0,43411.0,0.00025426]
[1642262191335,0.00082151,43416.0,43411.0,0.00025426]
[1642262191538,6.876e-05,43418.0,43411.0,0.00025426]
[1642262191737,0.00082156,43416.0,43411.0,0.00025426]
[1642262192439,0.6184684,43416.0,43411.0,0.00025426]
[1642262192839,0.61764684,43416.0,43411.0,0.00025426]
[1642262193043,0.6184684,43416.0,43411.0,0.00025426]
[1642262193640,0.6184684,43416.0,43410.0,0.65892705]
[1642262193841,0.6184684,43416.0,43410.0,0.41645805]
[1642262194044,0.61764684,43416.0,43409.0,8.595e-05]
[1642262194242,0.6184704,43416.0,43414.0,0.00012428]
[1642262194446,0.374699,43415.0,43414.0,0.00012428]
[1642262194644,0.6184704,43416.0,43414.0,0.00012428]
[1642262194888,0.6184704,43416.0,43411.0,0.23620663]
[1642262195087,0.00082356,43416.0,43409.0,0.0009246]
[1642262195387,0.00082357,43416.0,43410.0,6.876e-05]
[1642262195986,0.24235008,43412.0,43410.0,6.876e-05]
[1642262196788,0.0008235,43416.0,43410.0,6.876e-05]
[1642262197188,0.2694321,43416.0,43410.0,6.876e-05]
[1642262197389,0.2692861,43416.0,43410.0,6.876e-05]
[1642262197590,0.2686086,43416.0,43410.0,6.876e-05]
[1642262197789,0.2686086,43416.0,43410.0,0.00049243]
[1642262198534,0.26487848,43415.0,43410.0,0.00049243]
[1642262198739,0.26487848,43415.0,43410.0,6.876e-05]
[1642262198935,0.26487848,43415.0,43410.0,0.00049243]
[1642262199136,0.26487848,43415.0,43410.0,0.00042367]
[1642262200035,0.26487848,43415.0,43407.0,0.00012033]
[1642262200236,0.2686086,43416.0,43410.0,0.00083886]
[1642262200437,0.24627471,43415.0,43410.0,0.00083886]
[1642262201236,0.24627471,43415.0,43407.0,0.00012033]
[1642262201443,0.24627471,43415.0,43410.0,0.00083883]
[1642262202282,0.24627471,43415.0,43407.0,0.00012033]
[1642262202683,0.24627471,43415.0,43410.0,0.00083883]
[1642262203685,0.24627471,43415.0,43407.0,0.26936434]
[1642262203885,0.24627471,43415.0,43410.0,0.00083883]
[1642262204689,0.04712187,43417.0,43410.0,0.00083883]
[1642262204883,0.32986011,43411.0,43410.0,0.00083883]
[1642262205284,0.32986011,43411.0,43410.0,0.00090759]
[1642262205882,0.32986011,43411.0,43410.0,6.876e-05]
[1642262206340,0.32986011,43411.0,43409.0,8.595e-05]
[1642262206538,0.32986011,43411.0,43410.0,6.876e-05]
[1642262206739,0.32986011,43411.0,43409.0,8.595e-05]
[1642262206941,0.32986011,43411.0,43410.0,0.374699]
[1642262207343,0.32986011,43411.0,43410.0,0.37476776]
[1642262208139,0.32986011,43411.0,43410.0,6.876e-05]
[1642262208543,0.32986011,43411.0,43409.0,8.595e-05]
[1642262208944,1.1963,43410.0,43409.0,8.595e-05]
[1642262209142,1.2963,43410.0,43409.0,8.595e-05]
[1642262209343,1.570999,43410.0,43409.0,8.595e-05]
[1642262209542,0.420999,43410.0,43409.0,8.595e-05]
[1642262209991,0.420999,43410.0,43407.0,0.00083885]
[1642262210187,0.0463,43410.0,43408.0,0.00010314]
[1642262210391,1.78285078,43409.0,43408.0,0.00010314]
[1642262210589,2.30384978,43409.0,43408.0,0.00010314]
[1642262210789,2.02225884,43409.0,43408.0,0.00010314]
[1642262211089,2.02225884,43409.0,43406.0,0.00083886]
[1642262211287,1.107622,43407.0,43406.0,0.00083886]
[1642262211489,1.528621,43407.0,43406.0,0.00083886]
[1642262211790,0.578621,43407.0,43406.0,0.00083886]
[1642262212091,0.578621,43407.0,43397.0,0.33446104]
[1642262212092,0.29500262,43401.0,43397.0,0.33446104]
[1642262212487,0.29500262,43401.0,43398.0,0.37497404]
[1642262212988,0.29500262,43401.0,43399.0,0.00025785]
[1642262213387,0.29500262,43401.0,43397.0,0.00083895]
[1642262213644,0.34130262,43401.0,43397.0,0.00083895]
[1642262214046,0.0463,43401.0,43397.0,0.00083895]
[1642262214443,0.0463,43401.0,43396.0,0.00030942]
[1642262214645,0.0463,43401.0,43397.0,0.00083896]
[1642262215045,0.37747298,43401.0,43397.0,0.00083896]
[1642262215647,0.37747298,43401.0,43396.0,0.24236656]
[1642262215846,0.37747298,43401.0,43397.0,0.00083896]
[1642262216047,0.37747298,43401.0,43397.0,0.00113119]
[1642262216648,0.37747298,43401.0,43395.0,3.27463119]
[1642262218891,0.47747298,43401.0,43395.0,3.27463119]
[1642262219095,0.27213184,43396.0,43395.0,3.27463119]
[1642262219291,0.59181519,43396.0,43395.0,3.27556457]
[1642262219490,0.59181519,43396.0,43395.0,3.27056457]
[1642262220291,0.59181519,43396.0,43395.0,3.26963119]
[1642262221137,0.69181519,43396.0,43395.0,3.26963119]
[1642262223240,0.59181519,43396.0,43395.0,3.26963119]
[1642262223941,0.31843184,43396.0,43395.0,3.26963119]
[1642262224342,0.41843184,43396.0,43395.0,3.26963119]
[1642262224541,2.06843184,43396.0,43395.0,2.80515258]
[1642262224794,3.02213084,43396.0,43395.0,2.80515258]
[1642262224989,1.37213084,43396.0,43395.0,2.80515258]
[1642262225386,1.37213084,43396.0,43395.0,2.80015258]
[1642262226387,2.07213084,43396.0,43395.0,0.48822017]
[1642262226588,1.37213084,43396.0,43395.0,0.48822017]
[1642262228940,1.27213084,43396.0,43395.0,0.48822017]
[1642262229541,2.67213084,43396.0,43395.0,0.02704854]
[1642262229742,1.27213084,43396.0,43395.0,0.02704854]
[1642262230042,1.67213084,43396.0,43395.0,0.02704854]
[1642262230242,1.27213084,43396.0,43395.0,0.02704854]
[1642262230541,1.37213084,43396.0,43395.0,0.02704854]
[1642262232413,1.74160881,43396.0,43395.0,0.02704854]
[1642262232809,2.04160881,43396.0,43395.0,0.02704854]
[1642262233009,1.74160881,43396.0,43395.0,0.02704854]
[1642262233415,1.37213084,43396.0,43395.0,0.02704854]
[1642262233810,1.72213084,43396.0,43395.0,0.02704854]
[1642262234011,1.37213084,43396.0,43395.0,0.02704854]
[1642262234212,2.59813084,43396.0,43395.0,0.02704854]
[1642262234410,1.37213084,43396.0,43395.0,0.02704854]
[1642262234615,1.47799745,43396.0,43395.0,0.02704854]
[1642262234814,0.057651,43391.0,43373.0,0.7312945]